[Event "44th Chess Olympiad Open 2022"]
[Site "Chennai"]
[Date "2022.08.07"]
[Round "9.76"]
[White "Alrehaili, Ahmed Abdullah S"]
[Black "da Conceicao, Marcos"]
[Result "1-0"]
[WhiteElo "1986"]
[BlackElo "1713"]
[Annotator "NA"]
[PlyCount "121"]
[EventDate "2022.??.??"]
[TimeControl "60"]

1. e4 {[%emt 0:00:01]} d6 {[%emt 0:00:51]} 2. d4 {[%emt 0:00:10]} Nf6 {[%emt 0:
00:00]} 3. Nc3 {[%emt 0:00:07]} g6 {[%emt 0:01:11]} 4. Bf4 {[%emt 0:00:38]} Bg7
{[%emt 0:00:26]} 5. Qd2 {[%emt 0:00:07]} h5 {[%emt 0:03:29]} 6. O-O-O {[%emt 0:
00:00]} Nc6 {[%emt 0:00:34]} 7. Nf3 {[%emt 0:01:25]} Nh7 {[%emt 0:03:01]} 8. h3
{[%emt 0:02:33]} a6 {[%emt 0:01:48]} 9. Bh6 {[%emt 0:01:14]} Bf8 {[%emt 0:00:
00]} 10. Bc4 {[%emt 0:02:25]} e6 {[%emt 0:00:50]} 11. Bb3 {[%emt 0:03:38]} Na5
{[%emt 0:00:48]} 12. Bxf8 {[%emt 0:01:52]} Nxb3+ {[%emt 0:01:39]} 13. axb3 {
[%emt 0:00:00]} Nxf8 {[%emt 0:00:43]} 14. Qf4 {[%emt 0:00:31]} Qe7 {[%emt 0:00:
00]} 15. Rhe1 {[%emt 0:00:47]} Bd7 {[%emt 0:00:29]} 16. Nd5 {[%emt 0:01:56]}
exd5 {[%emt 0:04:56]} 17. exd5 {[%emt 0:00:06]} Ne6 {[%emt 0:00:29]} 18. dxe6 {
[%emt 0:00:06]} fxe6 {[%emt 0:00:38]} 19. d5 {[%emt 0:00:30]} Rf8 {[%emt 0:00:
00]} 20. Qg3 {[%emt 0:02:23]} O-O-O {[%emt 0:03:02]} 21. dxe6 {[%emt 0:01:02]}
Bxe6 {[%emt 0:01:05]} 22. Qxg6 {[%emt 0:01:31]} Rf6 {[%emt 0:00:53]} 23. Qxh5 {
[%emt 0:00:12]} Qf8 {[%emt 0:01:50]} 24. Rxe6 {[%emt 0:01:51]} Rxe6 {[%emt 0:
00:00]} 25. Qg4 {[%emt 0:00:02]} Qh6+ {[%emt 0:00:56]} 26. Ng5 {[%emt 0:00:04]}
Kd7 {[%emt 0:01:39]} 27. Re1 {[%emt 0:00:25]} Qxg5+ {[%emt 0:00:57]} 28. Qxg5 {
[%emt 0:00:22]} Rxe1+ {[%emt 0:00:31]} 29. Kd2 {[%emt 0:00:03]} Rde8 {[%emt 0:
00:00]} 30. Qg4+ {[%emt 0:00:02]} Kc6 {[%emt 0:02:28]} 31. f4 {[%emt 0:00:18]}
Rf1 {[%emt 0:00:41]} 32. f5 {[%emt 0:00:52]} b5 {[%emt 0:00:01]} 33. Qg5 {
[%emt 0:02:48]} Re5 {[%emt 0:16:06]} 34. b4 {[%emt 0:08:17]} Rf2+ {[%emt 0:00:
00]} 35. Kd3 {[%emt 0:00:18]} Rfxf5 {[%emt 0:02:55]} 36. Qg8 {[%emt 0:01:42]}
Rg5 {[%emt 0:00:31]} 37. Qa8+ {[%emt 0:00:15]} Kb6 {[%emt 0:00:49]} 38. g4 {
[%emt 0:00:12]} Rd5+ {[%emt 0:01:00]} 39. Kc3 {[%emt 0:00:02]} Rge5 {[%emt 0:
00:00]} 40. b3 {[%emt 0:04:15]} Rd1 {[%emt 0:04:50]} 41. Qf3 {[%emt 0:31:23]}
Ree1 {[%emt 0:31:23]} 42. Qf2+ {[%emt 0:00:42]} Kb7 {[%emt 0:00:48]} 43. Kb2 {
[%emt 0:04:16]} d5 {[%emt 0:00:44]} 44. c3 {[%emt 0:01:02]} Rb1+ {[%emt 0:00:
00]} 45. Kc2 {[%emt 0:00:05]} Red1 {[%emt 0:01:33]} 46. Qf4 {[%emt 0:02:37]}
Ra1 {[%emt 0:03:13]} 47. h4 {[%emt 0:02:11]} Rf1 {[%emt 0:01:07]} 48. Qg5 {
[%emt 0:02:42]} Ra2+ {[%emt 0:01:33]} 49. Kd3 {[%emt 0:00:02]} Rd1+ {[%emt 0:
00:00]} 50. Ke3 {[%emt 0:00:01]} Rad2 {[%emt 0:00:32]} 51. Qg6 {[%emt 0:01:58]}
Rb2 {[%emt 0:01:53]} 52. h5 {[%emt 0:01:31]} Rxb3 {[%emt 0:01:20]} 53. Qc2 {
[%emt 0:05:51]} Rbb1 {[%emt 0:01:31]} 54. Kf4 {[%emt 0:04:47]} Rbc1 {[%emt 0:
00:00]} 55. Qe2 {[%emt 0:02:15]} Re1 {[%emt 0:00:31]} 56. Qg2 {[%emt 0:02:04]}
Re4+ {[%emt 0:01:45]} 57. Kf5 {[%emt 0:00:07]} Rxc3 {[%emt 0:00:14]} 58. h6 {
[%emt 0:00:28]} Rce3 {[%emt 0:01:35]} 59. g5 {[%emt 0:01:46]} Kc8 {[%emt 0:00:
00]} 60. h7 {[%emt 0:01:37]} Re2 {[%emt 0:00:58]} 61. Qxe2 {[%emt 0:00:13]} 1-0

[Event "44th Chess Olympiad Open 2022"]
[Site "Chennai"]
[Date "2022.08.07"]
[Round "9.76"]
[White "Alharthi, Ahmed Mohammed A"]
[Black "Guterres, Cosme"]
[Result "1-0"]
[WhiteElo "1935"]
[BlackElo "1692"]
[Annotator "NA RC"]
[PlyCount "101"]
[EventDate "2022.??.??"]
[TimeControl "60"]

1. d4 {[%emt 0:00:04]} d5 {[%emt 0:00:19]} 2. Bf4 {[%emt 0:00:13]} Nf6 {
[%emt 0:00:11]} 3. e3 {[%emt 0:00:10]} c6 {[%emt 0:00:45]} 4. Nf3 {[%emt 0:00:
00]} Bg4 {[%emt 0:00:28]} 5. Bd3 {[%emt 0:03:01]} e6 {[%emt 0:00:38]} 6. O-O {
[%emt 0:00:24]} Be7 {[%emt 0:00:20]} 7. h3 {[%emt 0:00:44]} Bh5 {[%emt 0:00:58]
} 8. c4 {[%emt 0:01:15]} a6 {[%emt 0:01:13]} 9. Qb3 {[%emt 0:06:00]} Qc8 {
[%emt 0:02:25]} 10. c5 {[%emt 0:03:02]} O-O {[%emt 0:00:43]} 11. Nc3 {[%emt 0:
00:00]} Nbd7 {[%emt 0:01:05]} 12. Nd2 {[%emt 0:05:11]} Ne8 {[%emt 0:02:19]} 13.
e4 {[%emt 0:01:25]} Bg6 {[%emt 0:00:54]} 14. Rfe1 {[%emt 0:01:51]} Bd8 {
[%emt 0:01:53]} 15. Qc2 {[%emt 0:08:31]} b6 {[%emt 0:00:49]} 16. cxb6 {[%emt 0:
00:00]} Bxb6 {[%emt 0:01:15]} 17. Nf3 {[%emt 0:01:14]} Qb7 {[%emt 0:01:10]} 18.
b4 {[%emt 0:01:28]} Rc8 {[%emt 0:02:08]} 19. Qe2 {[%emt 0:06:05]} Ra8 {[%emt 0:
00:00]} 20. e5 {[%emt 0:08:08]} Bd8 {[%emt 0:01:53]} 21. Bd2 {[%emt 0:02:52]}
Nb6 {[%emt 0:00:45]} 22. Rab1 {[%emt 0:03:38]} Bxd3 {[%emt 0:01:43]} 23. Qxd3 {
[%emt 0:00:06]} Nc4 {[%emt 0:00:52]} 24. Na4 {[%emt 0:01:34]} Qc8 {[%emt 0:00:
00]} 25. Rec1 {[%emt 0:03:26]} Rb8 {[%emt 0:03:46]} 26. Nc5 {[%emt 0:02:08]}
Nc7 {[%emt 0:04:10]} 27. Bf4 {[%emt 0:03:15]} Nb5 {[%emt 0:01:23]} 28. a4 {
[%emt 0:01:17]} Nc7 {[%emt 0:01:27]} 29. Nd2 {[%emt 0:03:13]} Nxd2 {[%emt 0:00:
00]} 30. Bxd2 {[%emt 0:00:06]} Be7 {[%emt 0:01:16]} 31. Rc2 {[%emt 0:04:30]}
Bxc5 {[%emt 0:02:00]} 32. Rxc5 {[%emt 0:00:41]} Qd7 {[%emt 0:01:44]} 33. Rbc1 {
[%emt 0:00:38]} Ne8 {[%emt 0:01:27]} 34. Rxc6 {[%emt 0:00:31]} f6 {[%emt 0:00:
00]} 35. Qxa6 {[%emt 0:01:07]} fxe5 {[%emt 0:00:48]} 36. dxe5 {[%emt 0:01:06]}
Qf7 {[%emt 0:00:56]} 37. Qe2 {[%emt 0:00:16]} Qf5 {[%emt 0:01:28]} 38. b5 {
[%emt 0:00:26]} Rd8 {[%emt 0:01:07]} 39. b6 {[%emt 0:01:39]} d4 {[%emt 0:00:30]
} 40. a5 {[%emt 0:02:07]} Rd5 {[%emt 0:00:38]} 41. f4 {[%emt 0:31:49]} d3 {
[%emt 0:31:17]} 42. Qg4 {[%emt 0:00:28]} Qe4 {[%emt 0:00:49]} 43. Qxe6+ {
[%emt 0:00:50]} Kh8 {[%emt 0:00:40]} 44. Rc8 {[%emt 0:00:13]} h6 {[%emt 0:00:
00]} 45. Rxe8 {[%emt 0:02:08]} Rxe8 {[%emt 0:00:46]} 46. Qxe8+ {[%emt 0:00:06]}
Kh7 {[%emt 0:00:37]} 47. Qh5 {[%emt 0:00:53]} Rd4 {[%emt 0:01:36]} 48. Qf3 {
[%emt 0:00:58]} Qf5 {[%emt 0:00:32]} 49. b7 {[%emt 0:00:46]} Rd8 {[%emt 0:00:
00]} 50. a6 {[%emt 0:00:40]} h5 {[%emt 0:00:18]} 51. a7 {[%emt 0:00:26]} 1-0

[Event "44th Chess Olympiad Open 2022"]
[Site "Chennai"]
[Date "2022.08.07"]
[Round "9.76"]
[White "de Araujo, Helder"]
[Black "Alzamil, Abdulaziz"]
[Result "1-0"]
[WhiteElo "1742"]
[BlackElo "1871"]
[Annotator "NA"]
[PlyCount "133"]
[EventDate "2022.??.??"]
[TimeControl "60"]

1. c4 {[%emt 0:00:06]} c6 {[%emt 0:01:50]} 2. Nc3 {[%emt 0:00:24]} Nf6 {
[%emt 0:01:02]} 3. Nf3 {[%emt 0:00:15]} d5 {[%emt 0:00:39]} 4. cxd5 {[%emt 0:
00:00]} Nxd5 {[%emt 0:00:41]} 5. g3 {[%emt 0:00:44]} Nxc3 {[%emt 0:00:54]} 6.
bxc3 {[%emt 0:01:05]} g6 {[%emt 0:04:29]} 7. Bg2 {[%emt 0:00:14]} Bg7 {[%emt 0:
00:00]} 8. O-O {[%emt 0:00:45]} O-O {[%emt 0:00:17]} 9. Qb3 {[%emt 0:02:14]}
Nd7 {[%emt 0:01:58]} 10. a4 {[%emt 0:00:44]} a5 {[%emt 0:05:23]} 11. Ba3 {
[%emt 0:01:22]} Nf6 {[%emt 0:06:06]} 12. Rab1 {[%emt 0:00:57]} Ne4 {[%emt 0:00:
00]} 13. Qc2 {[%emt 0:04:15]} Nd6 {[%emt 0:00:36]} 14. d3 {[%emt 0:02:06]} Re8
{[%emt 0:06:49]} 15. Rfd1 {[%emt 0:03:03]} Qc7 {[%emt 0:00:46]} 16. c4 {
[%emt 0:01:13]} c5 {[%emt 0:07:04]} 17. Nd2 {[%emt 0:02:24]} Rb8 {[%emt 0:00:
00]} 18. Bb2 {[%emt 0:00:42]} e5 {[%emt 0:06:04]} 19. Ne4 {[%emt 0:01:17]} Nf5
{[%emt 0:01:09]} 20. Qb3 {[%emt 0:03:40]} b6 {[%emt 0:03:33]} 21. Bc3 {[%emt 0:
00:00]} Nd4 {[%emt 0:02:14]} 22. Bxd4 {[%emt 0:03:08]} exd4 {[%emt 0:00:13]}
23. Rb2 {[%emt 0:01:05]} Qe7 {[%emt 0:05:44]} 24. h4 {[%emt 0:02:18]} h6 {
[%emt 0:03:24]} 25. Re1 {[%emt 0:03:58]} Bd7 {[%emt 0:02:44]} 26. Qa3 {[%emt 0:
00:00]} Be5 {[%emt 0:02:27]} 27. Reb1 {[%emt 0:06:37]} Bc7 {[%emt 0:00:48]} 28.
Re1 {[%emt 0:00:11]} f5 {[%emt 0:02:16]} 29. Nd2 {[%emt 0:01:26]} f4 {[%emt 0:
00:00]} 30. Bd5+ {[%emt 0:02:50]} Kg7 {[%emt 0:00:19]} 31. Ne4 {[%emt 0:01:00]}
Rf8 {[%emt 0:01:07]} 32. Kg2 {[%emt 0:01:54]} fxg3 {[%emt 0:01:29]} 33. fxg3 {
[%emt 0:01:07]} Qe5 {[%emt 0:02:31]} 34. Rbb1 {[%emt 0:03:36]} Qf5 {[%emt 0:00:
00]} 35. Rh1 {[%emt 0:02:11]} Qg4 {[%emt 0:00:49]} 36. Rbf1 {[%emt 0:05:03]}
Qxe2+ {[%emt 0:00:33]} 37. Nf2 {[%emt 0:02:15]} Bg4 {[%emt 0:01:59]} 38. Qc1 {
[%emt 0:01:39]} Bf3+ {[%emt 0:00:22]} 39. Kh3 {[%emt 0:03:07]} Bxh1 {[%emt 0:
00:00]} 40. Re1 {[%emt 0:00:07]} Qxf2 {[%emt 0:00:24]} 41. Re7+ {[%emt 0:30:25]
} Rf7 {[%emt 0:40:24]} 42. Rxf7+ {[%emt 0:00:50]} Qxf7 {[%emt 0:00:07]} 43.
Bxf7 {[%emt 0:00:14]} Bc6 {[%emt 0:01:38]} 44. Bd5 {[%emt 0:01:12]} Bxa4 {
[%emt 0:00:43]} 45. Qf1 {[%emt 0:02:09]} Rf8 {[%emt 0:03:40]} 46. Qe2 {[%emt 0:
00:00]} Re8 {[%emt 0:00:33]} 47. Qf3 {[%emt 0:00:56]} Bd7+ {[%emt 0:00:52]} 48.
Kg2 {[%emt 0:01:30]} Re7 {[%emt 0:00:24]} 49. g4 {[%emt 0:01:21]} g5 {[%emt 0:
00:00]} 50. hxg5 {[%emt 0:00:00]} hxg5 {[%emt 0:00:00]} 51. Be4 {[%emt 0:00:00]
} Re8 {[%emt 0:00:00]} 52. Bf5 {[%emt 0:00:00]} Rf8 {[%emt 0:00:00]} 53. Qb7 {
[%emt 0:00:00]} Bxf5 {[%emt 0:00:00]} 54. Qxc7+ {[%emt 0:00:00]} Rf7 {[%emt 0:
00:00]} 55. Qe5+ {[%emt 0:00:00]} Rf6 {[%emt 0:00:00]} 56. gxf5 {[%emt 0:00:00]
} Kf7 {[%emt 0:00:00]} 57. Qc7+ {[%emt 0:00:00]} Kg8 {[%emt 0:00:00]} 58. Qd8+
{[%emt 0:00:00]} Kg7 {[%emt 0:00:00]} 59. Qe7+ {[%emt 0:00:00]} Rf7 {[%emt 0:
00:00]} 60. Qxg5+ {[%emt 0:00:00]} Kf8 {[%emt 0:00:00]} 61. f6 {[%emt 0:00:00]}
a4 {[%emt 0:00:00]} 62. Qh6+ {[%emt 0:00:00]} Ke8 {[%emt 0:00:00]} 63. Qg6 {
[%emt 0:00:00]} Kf8 {[%emt 0:00:00]} 64. Qf5 {[%emt 0:00:00]} Kg8 {[%emt 0:00:
00]} 65. Qe6 {[%emt 0:00:00]} a3 {[%emt 0:00:00]} 66. Qe8+ {[%emt 0:00:00]} Rf8
{[%emt 0:00:00]} 67. Qg6+ {[%emt 0:00:00]} 1-0

[Event "44th Chess Olympiad Open 2022"]
[Site "Chennai"]
[Date "2022.08.07"]
[Round "9.76"]
[White "dos Reis, Tito"]
[Black "Al Thebaiti Ahmed M"]
[Result "1-0"]
[WhiteElo "1658"]
[BlackElo "1966"]
[Annotator "NA"]
[PlyCount "133"]
[EventDate "2022.??.??"]
[TimeControl "60"]

1. f4 {[%emt 0:00:12]} Nf6 {[%emt 0:00:19]} 2. Nf3 {[%emt 0:00:16]} d5 {
[%emt 0:00:37]} 3. d4 {[%emt 0:00:11]} Bf5 {[%emt 0:02:39]} 4. e3 {[%emt 0:00:
00]} e6 {[%emt 0:01:07]} 5. Bd3 {[%emt 0:01:37]} c5 {[%emt 0:04:08]} 6. c3 {
[%emt 0:01:42]} Nc6 {[%emt 0:00:19]} 7. O-O {[%emt 0:03:36]} Bd6 {[%emt 0:00:
00]} 8. Ne5 {[%emt 0:01:28]} O-O {[%emt 0:01:09]} 9. Bxf5 {[%emt 0:02:16]} exf5
{[%emt 0:00:09]} 10. Nd2 {[%emt 0:03:26]} g6 {[%emt 0:11:32]} 11. Nb3 {[%emt 0:
00:00]} c4 {[%emt 0:00:43]} 12. Nd2 {[%emt 0:00:13]} Qc8 {[%emt 0:18:21]} 13.
h3 {[%emt 0:02:02]} b5 {[%emt 0:03:02]} 14. b3 {[%emt 0:05:42]} Ne7 {[%emt 0:
00:00]} 15. b4 {[%emt 0:01:34]} a5 {[%emt 0:00:29]} 16. bxa5 {[%emt 0:02:25]}
Rxa5 {[%emt 0:00:23]} 17. a3 {[%emt 0:01:16]} Ne4 {[%emt 0:00:13]} 18. Qc2 {
[%emt 0:01:16]} f6 {[%emt 0:02:17]} 19. Nef3 {[%emt 0:00:39]} Qa6 {[%emt 0:00:
00]} 20. Nxe4 {[%emt 0:04:17]} dxe4 {[%emt 0:00:18]} 21. Nd2 {[%emt 0:00:53]}
Bxa3 {[%emt 0:02:47]} 22. Bxa3 {[%emt 0:01:55]} Rxa3 {[%emt 0:00:11]} 23. Qb2 {
[%emt 0:00:19]} Ra8 {[%emt 0:09:22]} 24. Rxa3 {[%emt 0:03:08]} Qxa3 {[%emt 0:
00:00]} 25. Qxb5 {[%emt 0:00:15]} Qxc3 {[%emt 0:00:32]} 26. Qxc4+ {[%emt 0:00:
00]} Qxc4 {[%emt 0:00:08]} 27. Nxc4 {[%emt 0:00:16]} Rc8 {[%emt 0:00:22]} 28.
Nb6 {[%emt 0:02:19]} Rc3 {[%emt 0:06:04]} 29. Re1 {[%emt 0:00:30]} Rb3 {
[%emt 0:00:13]} 30. Nd7 {[%emt 0:00:32]} Nd5 {[%emt 0:00:30]} 31. Kf2 {[%emt 0:
00:00]} Kf7 {[%emt 0:03:12]} 32. Re2 {[%emt 0:00:32]} Nc3 {[%emt 0:02:20]} 33.
Rd2 {[%emt 0:00:33]} Nd5 {[%emt 0:00:47]} 34. Re2 {[%emt 0:00:12]} Ke7 {
[%emt 0:00:55]} 35. Nc5 {[%emt 0:00:32]} Ra3 {[%emt 0:01:35]} 36. Re1 {[%emt 0:
00:00]} Kd6 {[%emt 0:02:36]} 37. h4 {[%emt 0:01:16]} h5 {[%emt 0:01:38]} 38. g3
{[%emt 0:00:18]} Nc3 {[%emt 0:00:43]} 39. Nb7+ {[%emt 0:04:50]} Kc6 {[%emt 0:
00:00]} 40. Nc5 {[%emt 0:01:16]} Ra2+ {[%emt 0:01:31]} 41. Kf1 {[%emt 0:32:26]}
Kd5 {[%emt 0:32:08]} 42. Nd7 {[%emt 0:01:37]} Ke6 {[%emt 0:04:45]} 43. Nc5+ {
[%emt 0:02:59]} Kd6 {[%emt 0:00:24]} 44. Nb7+ {[%emt 0:01:04]} Kd5 {[%emt 0:00:
00]} 45. Nc5 {[%emt 0:00:42]} Rc2 {[%emt 0:02:06]} 46. Nd7 {[%emt 0:00:53]} Ke6
{[%emt 0:00:56]} 47. Nc5+ {[%emt 0:00:13]} Kd6 {[%emt 0:00:15]} 48. Nb7+ {
[%emt 0:02:55]} Kd5 {[%emt 0:01:01]} 49. Nc5 {[%emt 0:00:36]} Kc4 {[%emt 0:00:
00]} 50. Nd7 {[%emt 0:01:08]} Kd3 {[%emt 0:00:00]} 51. Nxf6 {[%emt 0:00:00]}
Ne2 {[%emt 0:00:00]} 52. d5 {[%emt 0:00:00]} Kxe3 {[%emt 0:00:00]} 53. d6 {
[%emt 0:00:00]} Kf3 {[%emt 0:00:00]} 54. Ra1 {[%emt 0:00:00]} Nxg3+ {[%emt 0:
00:00]} 55. Ke1 {[%emt 0:00:00]} e3 {[%emt 0:00:00]} 56. d7 {[%emt 0:00:00]}
Re2+ {[%emt 0:00:00]} 57. Kd1 {[%emt 0:00:00]} Rd2+ {[%emt 0:00:00]} 58. Ke1 {
[%emt 0:00:00]} Rh2 {[%emt 0:00:00]} 59. Kd1 {[%emt 0:00:00]} Rd2+ {[%emt 0:00:
00]} 60. Ke1 {[%emt 0:00:00]} Rg2 {[%emt 0:00:00]} 61. Kd1 {[%emt 0:00:00]}
Rd2+ {[%emt 0:03:46]} 62. Ke1 {[%emt 0:00:00]} Rh2 {[%emt 0:00:15]} 63. Kd1 {
[%emt 0:00:00]} Nf1 {[%emt 0:03:26]} 64. d8=Q {[%emt 0:00:00]} e2+ {[%emt 0:00:
00]} 65. Ke1 {[%emt 0:00:00]} Ne3 {[%emt 0:00:44]} 66. Qa8+ {[%emt 0:00:00]}
Kg3 {[%emt 0:01:01]} 67. Ra3 {[%emt 0:00:15]} 1-0

[Event "44th Chess Olympiad Open 2022"]
[Site "Chennai"]
[Date "2022.08.07"]
[Round "9.77"]
[White "Nor, Mohamed Ahmed"]
[Black "Khalema, Sechaba"]
[Result "1/2-1/2"]
[WhiteElo "1907"]
[BlackElo "1790"]
[Annotator "NA RC"]
[PlyCount "110"]
[EventDate "2022.??.??"]
[TimeControl "60"]

1. e4 {[%emt 0:00:49]} c6 {[%emt 0:05:42]} 2. d4 {[%emt 0:00:15]} d5 {[%emt 0:
00:00]} 3. exd5 {[%emt 0:00:38]} cxd5 {[%emt 0:00:03]} 4. Nf3 {[%emt 0:00:24]}
Nc6 {[%emt 0:00:08]} 5. c3 {[%emt 0:00:57]} Nf6 {[%emt 0:00:09]} 6. Bd3 {
[%emt 0:00:28]} Bg4 {[%emt 0:00:13]} 7. O-O {[%emt 0:00:32]} e6 {[%emt 0:00:03]
} 8. Re1 {[%emt 0:00:49]} Be7 {[%emt 0:00:13]} 9. h3 {[%emt 0:00:21]} Bh5 {
[%emt 0:00:07]} 10. Nbd2 {[%emt 0:00:47]} O-O {[%emt 0:00:10]} 11. Qc2 {
[%emt 0:01:10]} Rc8 {[%emt 0:00:13]} 12. Ne5 {[%emt 0:00:51]} Nxd4 {[%emt 0:00:
00]} 13. Qa4 {[%emt 0:00:54]} Nc6 {[%emt 0:00:06]} 14. Nxc6 {[%emt 0:00:33]}
Rxc6 {[%emt 0:01:06]} 15. Qxa7 {[%emt 0:00:22]} Bc5 {[%emt 0:00:06]} 16. Qa4 {
[%emt 0:01:07]} Qd6 {[%emt 0:00:05]} 17. Nf1 {[%emt 0:02:14]} e5 {[%emt 0:00:
00]} 18. Qh4 {[%emt 0:02:12]} e4 {[%emt 0:01:51]} 19. Bb5 {[%emt 0:00:46]} Rb6
{[%emt 0:00:25]} 20. a4 {[%emt 0:00:14]} Qe6 {[%emt 0:01:22]} 21. Bg5 {[%emt 0:
00:00]} Bg6 {[%emt 0:00:13]} 22. Rad1 {[%emt 0:02:26]} Qf5 {[%emt 0:00:56]} 23.
Be3 {[%emt 0:02:40]} Rc8 {[%emt 0:00:42]} 24. Bd4 {[%emt 0:01:55]} Bxd4 {
[%emt 0:08:53]} 25. Rxd4 {[%emt 0:00:19]} Rd6 {[%emt 0:00:46]} 26. Qg3 {
[%emt 0:01:20]} Qe6 {[%emt 0:00:11]} 27. Nd2 {[%emt 0:03:44]} Nh5 {[%emt 0:00:
00]} 28. Qh2 {[%emt 0:01:16]} Rdd8 {[%emt 0:00:16]} 29. g4 {[%emt 0:01:55]} Nf6
{[%emt 0:12:58]} 30. Qg3 {[%emt 0:00:35]} h6 {[%emt 0:00:23]} 31. f4 {[%emt 0:
00:00]} Qd6 {[%emt 0:02:37]} 32. Qe3 {[%emt 0:00:46]} Bh7 {[%emt 0:01:03]} 33.
Kg2 {[%emt 0:00:30]} Kf8 {[%emt 0:00:26]} 34. Re2 {[%emt 0:01:56]} Qe6 {
[%emt 0:00:34]} 35. Nf1 {[%emt 0:02:01]} h5 {[%emt 0:00:36]} 36. g5 {[%emt 0:
00:00]} Ng8 {[%emt 0:00:03]} 37. Rf2 {[%emt 0:00:50]} Ne7 {[%emt 0:00:12]} 38.
c4 {[%emt 0:02:01]} Nf5 {[%emt 0:00:10]} 39. Qa3+ {[%emt 0:00:40]} Kg8 {
[%emt 0:00:57]} 40. cxd5 {[%emt 0:00:25]} Rxd5 {[%emt 0:00:15]} 41. Rxd5 {
[%emt 0:30:41]} Qxd5 {[%emt 0:32:36]} 42. Ne3 {[%emt 0:00:02]} Qe6 {[%emt 0:00:
00]} 43. Nxf5 {[%emt 0:01:23]} Bxf5 {[%emt 0:00:15]} 44. Qe3 {[%emt 0:00:21]}
Rd8 {[%emt 0:00:14]} 45. b3 {[%emt 0:03:24]} Rd1 {[%emt 0:01:30]} 46. Rf1 {
[%emt 0:01:37]} Qd6 {[%emt 0:01:31]} 47. Rxd1 {[%emt 0:00:32]} Qxd1 {[%emt 0:
00:00]} 48. Be2 {[%emt 0:00:21]} Qc2 {[%emt 0:01:33]} 49. Kg3 {[%emt 0:00:38]}
g6 {[%emt 0:00:40]} 50. Bc4 {[%emt 0:00:54]} Qd1 {[%emt 0:00:29]} 51. Kf2 {
[%emt 0:02:34]} Qc2+ {[%emt 0:02:20]} 52. Ke1 {[%emt 0:01:53]} h4 {[%emt 0:00:
00]} 53. Be2 {[%emt 0:01:53]} Qc7 {[%emt 0:00:12]} 54. Bf1 {[%emt 0:01:08]} Qc2
{[%emt 0:01:02]} 55. Be2 {[%emt 0:00:24]} Qc7 {[%emt 0:04:59]} 1/2-1/2

[Event "44th Chess Olympiad Open 2022"]
[Site "Chennai"]
[Date "2022.08.07"]
[Round "9.77"]
[White "Islam Sh.Nour, Kassim"]
[Black "Ntsonyana, Bahlakoana"]
[Result "1-0"]
[WhiteElo "1873"]
[BlackElo "1454"]
[Annotator "NA"]
[PlyCount "115"]
[EventDate "2022.??.??"]
[TimeControl "60"]

1. b3 {[%emt 0:00:10]} d5 {[%emt 0:02:34]} 2. Bb2 {[%emt 0:00:04]} c5 {[%emt 0:
00:00]} 3. e3 {[%emt 0:00:06]} a6 {[%emt 0:00:40]} 4. Nf3 {[%emt 0:00:37]} Bg4
{[%emt 0:00:36]} 5. Be2 {[%emt 0:00:24]} e6 {[%emt 0:00:27]} 6. Ne5 {[%emt 0:
00:00]} Bxe2 {[%emt 0:00:37]} 7. Qxe2 {[%emt 0:00:07]} Nc6 {[%emt 0:01:19]} 8.
Nxc6 {[%emt 0:01:06]} bxc6 {[%emt 0:00:05]} 9. O-O {[%emt 0:00:19]} Nf6 {
[%emt 0:00:30]} 10. d3 {[%emt 0:00:11]} Be7 {[%emt 0:09:12]} 11. Nd2 {[%emt 0:
00:00]} O-O {[%emt 0:00:10]} 12. Nf3 {[%emt 0:00:23]} Nd7 {[%emt 0:00:24]} 13.
e4 {[%emt 0:02:37]} Bf6 {[%emt 0:03:27]} 14. e5 {[%emt 0:00:14]} Be7 {[%emt 0:
00:00]} 15. Nd2 {[%emt 0:00:14]} a5 {[%emt 0:08:22]} 16. a4 {[%emt 0:02:13]}
Nb6 {[%emt 0:01:01]} 17. f4 {[%emt 0:00:30]} g6 {[%emt 0:00:27]} 18. Rf3 {
[%emt 0:01:27]} d4 {[%emt 0:01:17]} 19. Rh3 {[%emt 0:01:05]} Nd5 {[%emt 0:00:
00]} 20. Qf2 {[%emt 0:00:42]} f6 {[%emt 0:13:29]} 21. Rf3 {[%emt 0:04:43]} fxe5
{[%emt 0:04:52]} 22. fxe5 {[%emt 0:00:09]} Qc7 {[%emt 0:00:29]} 23. Nc4 {
[%emt 0:00:36]} Nb6 {[%emt 0:03:18]} 24. Nxb6 {[%emt 0:05:22]} Qxb6 {[%emt 0:
00:00]} 25. Rf1 {[%emt 0:00:38]} Qc7 {[%emt 0:03:56]} 26. Qg3 {[%emt 0:00:13]}
Rxf3 {[%emt 0:01:57]} 27. Rxf3 {[%emt 0:00:08]} Rf8 {[%emt 0:00:16]} 28. Bc1 {
[%emt 0:01:22]} Rxf3 {[%emt 0:03:58]} 29. gxf3 {[%emt 0:00:08]} Bd8 {[%emt 0:
00:00]} 30. Bh6 {[%emt 0:00:57]} Qf7 {[%emt 0:00:34]} 31. f4 {[%emt 0:00:40]}
Be7 {[%emt 0:02:18]} 32. Qf3 {[%emt 0:02:47]} Qe8 {[%emt 0:00:10]} 33. Qe4 {
[%emt 0:01:29]} Qd7 {[%emt 0:00:37]} 34. Qe1 {[%emt 0:00:26]} Bd8 {[%emt 0:00:
00]} 35. f5 {[%emt 0:06:25]} gxf5 {[%emt 0:16:44]} 36. Qg3+ {[%emt 0:00:10]}
Kh8 {[%emt 0:00:34]} 37. Bf8 {[%emt 0:00:15]} Bb6 {[%emt 0:05:01]} 38. Qg5 {
[%emt 0:02:29]} Qf7 {[%emt 0:00:48]} 39. Qf6+ {[%emt 0:05:51]} Qxf6 {[%emt 0:
00:00]} 40. exf6 {[%emt 0:00:07]} Kg8 {[%emt 0:00:12]} 41. Be7 {[%emt 0:30:18]}
Kf7 {[%emt 0:33:51]} 42. Kg2 {[%emt 0:00:23]} Bc7 {[%emt 0:06:01]} 43. Bxc5 {
[%emt 0:00:36]} e5 {[%emt 0:00:15]} 44. Be7 {[%emt 0:01:13]} Ke6 {[%emt 0:00:
00]} 45. Kf3 {[%emt 0:04:54]} Bb6 {[%emt 0:01:50]} 46. Kg3 {[%emt 0:02:37]} Bc7
{[%emt 0:00:00]} 47. Kf3 {[%emt 0:00:00]} c5 {[%emt 0:00:00]} 48. Bxc5 {
[%emt 0:00:00]} Kxf6 {[%emt 0:00:00]} 49. b4 {[%emt 0:00:00]} Ke6 {[%emt 0:00:
00]} 50. b5 {[%emt 0:00:00]} Kd5 {[%emt 0:00:00]} 51. Ba7 {[%emt 0:00:00]} e4+
{[%emt 0:00:00]} 52. Kg2 {[%emt 0:00:00]} Bd6 {[%emt 0:00:00]} 53. h3 {[%emt 0:
00:00]} Bc5 {[%emt 0:00:00]} 54. Bxc5 {[%emt 0:00:00]} Kxc5 {[%emt 0:00:00]}
55. dxe4 {[%emt 0:00:00]} fxe4 {[%emt 0:00:00]} 56. Kg3 {[%emt 0:00:00]} d3 {
[%emt 0:06:27]} 57. cxd3 {[%emt 0:00:00]} exd3 {[%emt 0:00:13]} 58. Kf2 {
[%emt 0:00:00]} 1-0